[Event "Titled Tuesday Blitz April 19 Early 2022"]
[White "Vokarev, Sergey"]
[Black "Lach, Aleksandra"]
[WhiteFideId "4119711"]
[BlackFideId "1134299"]
[WhiteElo "2343"]
[BlackElo "2172"]
[Result "1-0"]
[Round "10"]
[TimeControl "180+1"]
[Date "2022.04.19"]
[WhiteClock "0:00:19"]
[BlackClock "0:00:11"]

1. e4 {[%clk 0:03:00]}  c5 {[%clk 0:02:59]} 2. Nf3 {[%clk 0:03:00]}  g6 {[%clk 0:02:59]} 3. d4 {[%clk 0:03:00]}  cxd4 {[%clk 0:03:00]} 4. Qxd4 {[%clk 0:03:01]}  Nf6 {[%clk 0:02:59]} 5. Nc3 {[%clk 0:03:00]}  Nc6 {[%clk 0:02:58]} 6. Qa4 {[%clk 0:03:01]}  d6 {[%clk 0:02:58]} 7. e5 {[%clk 0:02:57]}  dxe5 {[%clk 0:02:58]} 8. Nxe5 {[%clk 0:02:58]}  Bd7 {[%clk 0:02:59]} 9. Nxd7 {[%clk 0:02:59]}  Qxd7 {[%clk 0:02:59]} 10. Bd3 {[%clk 0:02:57]}  Bg7 {[%clk 0:02:59]} 11. O-O {[%clk 0:02:57]}  O-O {[%clk 0:02:58]} 12. Be3 {[%clk 0:02:55]}  a6 {[%clk 0:02:50]} 13. Rad1 {[%clk 0:02:54]}  Qc8 {[%clk 0:02:49]} 14. Rfe1 {[%clk 0:02:40]}  b5 {[%clk 0:02:47]} 15. Qh4 {[%clk 0:02:38]}  Ne5 {[%clk 0:02:36]} 16. Bh6 {[%clk 0:02:31]}  Nxd3 {[%clk 0:02:34]} 17. Rxd3 {[%clk 0:02:28]}  Qc5 {[%clk 0:02:28]} 18. Bxg7 {[%clk 0:02:23]}  Kxg7 {[%clk 0:02:28]} 19. a3 {[%clk 0:02:22]}  h5 {[%clk 0:02:23]} 20. Qd4 {[%clk 0:02:21]}  Qxd4 {[%clk 0:02:18]} 21. Rxd4 {[%clk 0:02:22]}  Ra7 {[%clk 0:02:18]} 22. f3 {[%clk 0:02:19]}  Rb7 {[%clk 0:02:18]} 23. Kf2 {[%clk 0:02:17]}  Rc8 {[%clk 0:02:18]} 24. Re2 {[%clk 0:02:06]}  e6 {[%clk 0:02:16]} 25. Rb4 {[%clk 0:01:58]}  Rbc7 {[%clk 0:02:07]} 26. a4 {[%clk 0:01:56]}  bxa4 {[%clk 0:02:05]} 27. Rxa4 {[%clk 0:01:56]}  Rb8 {[%clk 0:02:02]} 28. Nd1 {[%clk 0:01:54]}  Rb6 {[%clk 0:02:00]} 29. b3 {[%clk 0:01:51]}  Nd5 {[%clk 0:01:56]} 30. g3 {[%clk 0:01:32]}  Kf6 {[%clk 0:01:27]} 31. c4 {[%clk 0:01:31]}  Nb4 {[%clk 0:01:22]} 32. Rd2 {[%clk 0:01:23]}  Nc6 {[%clk 0:01:08]} 33. Ra3 {[%clk 0:01:18]}  a5 {[%clk 0:01:05]} 34. Nc3 {[%clk 0:01:17]}  Rcb7 {[%clk 0:00:53]} 35. Nb5 {[%clk 0:01:16]}  Na7 {[%clk 0:00:49]} 36. Nd6 {[%clk 0:01:00]}  Rb8 {[%clk 0:00:35]} 37. Rd3 {[%clk 0:00:59]}  Nc6 {[%clk 0:00:34]} 38. h4 {[%clk 0:00:56]}  Ke7 {[%clk 0:00:34]} 39. Nb5 {[%clk 0:00:55]}  R8b7 {[%clk 0:00:32]} 40. Rd2 {[%clk 0:00:48]}  Na7 {[%clk 0:00:30]} 41. Nxa7 {[%clk 0:00:41]}  Rxa7 {[%clk 0:00:30]} 42. Ke3 {[%clk 0:00:40]}  Rb4 {[%clk 0:00:28]} 43. Kd3 {[%clk 0:00:37]}  a4 {[%clk 0:00:24]} 44. bxa4 {[%clk 0:00:31]}  Rbxa4 {[%clk 0:00:24]} 45. Rxa4 {[%clk 0:00:31]}  Rxa4 {[%clk 0:00:25]} 46. Rb2 {[%clk 0:00:29]}  Ra3+ {[%clk 0:00:25]} 47. Ke4 {[%clk 0:00:28]}  Rc3 {[%clk 0:00:25]} 48. Rb4 {[%clk 0:00:26]}  Kd6 {[%clk 0:00:21]} 49. Ra4 {[%clk 0:00:24]}  e5 {[%clk 0:00:11]} 50. g4 {[%clk 0:00:23]}  hxg4 {[%clk 0:00:10]} 51. fxg4 {[%clk 0:00:24]}  Rg3 {[%clk 0:00:11]} 52. c5+ {[%clk 0:00:22]}  Kxc5 {[%clk 0:00:11]} 53. Kxe5 {[%clk 0:00:22]}  Rf3 {[%clk 0:00:10]} 54. Rf4 {[%clk 0:00:20]}  Re3+ {[%clk 0:00:09]} 55. Kf6 {[%clk 0:00:20]}  Rh3 {[%clk 0:00:10]} 56. g5 {[%clk 0:00:20]}  Kd6 {[%clk 0:00:09]} 57. Kxf7 {[%clk 0:00:20]}  Ke5 {[%clk 0:00:10]} 58. Ra4 {[%clk 0:00:20]}  Kf5 {[%clk 0:00:10]} 59. Ra5+ {[%clk 0:00:19]}  Kg4 {[%clk 0:00:10]} 60. Kxg6 {[%clk 0:00:19]}  Rxh4 {[%clk 0:00:11]} 61. Ra4+ {[%clk 0:00:19]} 1-0


[Site "https://www.chess.com"]

[Event "Titled Tuesday Blitz April 19 Early 2022"]
[White "Weetik, Vjacheslav"]
[Black "Pesotskiy, Mikhail"]
[WhiteFideId "4153472"]
[BlackFideId "34164453"]
[WhiteElo "2469"]
[BlackElo "2010"]
[Result "1-0"]
[Round "10"]
[TimeControl "180+1"]
[Date "2022.04.19"]
[WhiteClock "0:01:27"]
[BlackClock "0:01:27"]

1. d4 {[%clk 0:03:00]}  Nf6 {[%clk 0:03:00]} 2. c4 {[%clk 0:02:59]}  c5 {[%clk 0:03:01]} 3. d5 {[%clk 0:02:59]}  e6 {[%clk 0:02:57]} 4. Nc3 {[%clk 0:02:59]}  exd5 {[%clk 0:02:57]} 5. cxd5 {[%clk 0:03:00]}  d6 {[%clk 0:02:57]} 6. Nf3 {[%clk 0:02:57]}  g6 {[%clk 0:02:57]} 7. Nd2 {[%clk 0:02:53]}  Bg7 {[%clk 0:02:54]} 8. e4 {[%clk 0:02:53]}  O-O {[%clk 0:02:54]} 9. Be2 {[%clk 0:02:53]}  a6 {[%clk 0:02:33]} 10. a4 {[%clk 0:02:53]}  Re8 {[%clk 0:02:34]} 11. O-O {[%clk 0:02:52]}  Nbd7 {[%clk 0:02:34]} 12. Ra3 {[%clk 0:02:43]}  Rb8 {[%clk 0:02:29]} 13. Re1 {[%clk 0:02:35]}  Ne5 {[%clk 0:02:03]} 14. h3 {[%clk 0:02:28]}  g5 {[%clk 0:02:00]} 15. Nf3 {[%clk 0:02:15]}  Nxf3+ {[%clk 0:01:54]} 16. Bxf3 {[%clk 0:02:15]}  Nd7 {[%clk 0:01:51]} 17. Bg4 {[%clk 0:02:00]}  b5 {[%clk 0:01:46]} 18. axb5 {[%clk 0:01:59]}  axb5 {[%clk 0:01:47]} 19. Ra7 {[%clk 0:01:59]}  Ne5 {[%clk 0:01:39]} 20. Bxc8 {[%clk 0:01:57]}  Qxc8 {[%clk 0:01:37]} 21. Bxg5 {[%clk 0:01:50]}  b4 {[%clk 0:01:35]} 22. Ne2 {[%clk 0:01:37]}  Nc4 {[%clk 0:01:31]} 23. Ng3 {[%clk 0:01:28]}  Nxb2 {[%clk 0:01:28]} 24. Qh5 {[%clk 0:01:27]}  Nd3 {[%clk 0:01:27]} 25. Qxf7+ {[%clk 0:01:27]} 1-0


[Site "https://www.chess.com"]

[Event "Titled Tuesday Blitz April 19 Early 2022"]
[White "parintele_chess"]
[Black "Gatterer, Florian"]
[BlackFideId "811688"]
[WhiteElo "2225"]
[BlackElo "2218"]
[Result "0-1"]
[Round "10"]
[TimeControl "180+1"]
[Date "2022.04.19"]
[WhiteClock "0:01:48"]
[BlackClock "0:01:27"]

1. d4 {[%clk 0:02:59]}  g6 {[%clk 0:02:55]} 2. e4 {[%clk 0:02:58]}  d6 {[%clk 0:02:52]} 3. Nc3 {[%clk 0:02:58]}  Nf6 {[%clk 0:02:51]} 4. f4 {[%clk 0:02:57]}  Bg7 {[%clk 0:02:50]} 5. Nf3 {[%clk 0:02:57]}  O-O {[%clk 0:02:49]} 6. Bd3 {[%clk 0:02:55]}  Nc6 {[%clk 0:02:48]} 7. O-O {[%clk 0:02:55]}  e5 {[%clk 0:02:48]} 8. d5 {[%clk 0:02:54]}  Nd4 {[%clk 0:02:45]} 9. fxe5 {[%clk 0:02:54]}  dxe5 {[%clk 0:02:43]} 10. Nxe5 {[%clk 0:02:43]}  Nxe4 {[%clk 0:02:43]} 11. Bxe4 {[%clk 0:02:37]}  Bxe5 {[%clk 0:02:33]} 12. Bh6 {[%clk 0:02:37]}  Qh4 {[%clk 0:02:22]} 13. h3 {[%clk 0:02:16]}  Qxh6 {[%clk 0:02:20]} 14. d6 {[%clk 0:02:14]}  c6 {[%clk 0:02:04]} 15. Kh1 {[%clk 0:02:08]}  Bxh3 {[%clk 0:02:00]} 16. Rf3 {[%clk 0:02:05]}  Bg4+ {[%clk 0:01:58]} 17. Kg1 {[%clk 0:02:04]}  Bxf3 {[%clk 0:01:50]} 18. Bxf3 {[%clk 0:02:03]}  Qe3+ {[%clk 0:01:40]} 19. Kf1 {[%clk 0:01:58]}  Nxf3 {[%clk 0:01:39]} 20. gxf3 {[%clk 0:01:57]}  Bxc3 {[%clk 0:01:38]} 21. bxc3 {[%clk 0:01:55]}  Rad8 {[%clk 0:01:36]} 22. d7 {[%clk 0:01:52]}  Qe6 {[%clk 0:01:34]} 23. Qd4 {[%clk 0:01:49]}  Qh3+ {[%clk 0:01:29]} 24. Kf2 {[%clk 0:01:48]}  Rxd7 {[%clk 0:01:29]} 25. Rg1 {[%clk 0:01:48]}  Rxd4 {[%clk 0:01:27]} 0-1


[Site "https://www.chess.com"]

[Event "Titled Tuesday Blitz April 19 Early 2022"]
[White "Aaditya Dhingra"]
[Black "Khamdamova, Afruza"]
[WhiteFideId "25678191"]
[BlackFideId "14210444"]
[WhiteElo "1849"]
[BlackElo "1660"]
[Result "1-0"]
[Round "11"]
[TimeControl "180+1"]
[Date "2022.04.19"]
[WhiteClock "0:01:42"]
[BlackClock "0:02:16"]

1. d4 {[%clk 0:03:00]}  Nf6 {[%clk 0:02:59]} 2. Nf3 {[%clk 0:03:00]}  d5 {[%clk 0:02:59]} 3. c4 {[%clk 0:02:58]}  e6 {[%clk 0:02:58]} 4. Nc3 {[%clk 0:02:58]}  Be7 {[%clk 0:02:58]} 5. Bf4 {[%clk 0:02:58]}  O-O {[%clk 0:02:58]} 6. e3 {[%clk 0:02:58]}  dxc4 {[%clk 0:02:55]} 7. Bxc4 {[%clk 0:02:57]}  b6 {[%clk 0:02:55]} 8. O-O {[%clk 0:02:56]}  Bb7 {[%clk 0:02:55]} 9. Rc1 {[%clk 0:02:55]}  Nbd7 {[%clk 0:02:54]} 10. Ne5 {[%clk 0:02:47]}  c5 {[%clk 0:02:51]} 11. Nxd7 {[%clk 0:02:44]}  Qxd7 {[%clk 0:02:49]} 12. dxc5 {[%clk 0:02:43]}  Bxc5 {[%clk 0:02:46]} 13. Qxd7 {[%clk 0:02:38]}  Nxd7 {[%clk 0:02:46]} 14. Rfd1 {[%clk 0:02:39]}  Nf6 {[%clk 0:02:44]} 15. a3 {[%clk 0:02:36]}  Rac8 {[%clk 0:02:39]} 16. Nb5 {[%clk 0:02:16]}  a6 {[%clk 0:02:36]} 17. Nd6 {[%clk 0:02:15]}  Bxd6 {[%clk 0:02:35]} 18. Bxd6 {[%clk 0:02:15]}  Rfd8 {[%clk 0:02:34]} 19. Be5 {[%clk 0:02:04]}  Nd5 {[%clk 0:02:27]} 20. e4 {[%clk 0:01:52]}  Ne7 {[%clk 0:02:27]} 21. f3 {[%clk 0:01:45]}  Rxd1+ {[%clk 0:02:22]} 22. Rxd1 {[%clk 0:01:45]}  f6 {[%clk 0:02:21]} 23. Bxe6+ {[%clk 0:01:44]}  Kf8 {[%clk 0:02:18]} 24. Bxc8 {[%clk 0:01:44]}  Bxc8 {[%clk 0:02:16]} 25. Bd6 {[%clk 0:01:42]} 1-0


[Site "https://www.chess.com"]

[Event "Titled Tuesday Blitz April 19 Early 2022"]
[White "Al-Tarboush, Ward"]
[Black "Pourkashiyan, Atousa"]
[WhiteFideId "7601450"]
[BlackFideId "12502014"]
[WhiteElo "2276"]
[BlackElo "2247"]
[Result "1-0"]
[Round "11"]
[TimeControl "180+1"]
[Date "2022.04.19"]
[WhiteClock "0:02:24"]
[BlackClock "0:00:15"]

1. e4 {[%clk 0:02:57]}  e5 {[%clk 0:02:58]} 2. Nf3 {[%clk 0:02:57]}  Nc6 {[%clk 0:02:55]} 3. Bb5 {[%clk 0:02:58]}  a6 {[%clk 0:02:54]} 4. Ba4 {[%clk 0:02:58]}  Nf6 {[%clk 0:02:54]} 5. O-O {[%clk 0:02:59]}  Be7 {[%clk 0:02:51]} 6. Qe2 {[%clk 0:02:59]}  b5 {[%clk 0:02:48]} 7. Bb3 {[%clk 0:02:58]}  d6 {[%clk 0:02:49]} 8. c3 {[%clk 0:02:57]}  O-O {[%clk 0:02:47]} 9. Rd1 {[%clk 0:02:57]}  Na5 {[%clk 0:02:42]} 10. Bc2 {[%clk 0:02:57]}  c5 {[%clk 0:02:42]} 11. d4 {[%clk 0:02:57]}  Qc7 {[%clk 0:02:40]} 12. d5 {[%clk 0:02:58]}  c4 {[%clk 0:02:37]} 13. b4 {[%clk 0:02:57]}  cxb3 {[%clk 0:02:33]} 14. axb3 {[%clk 0:02:57]}  Nb7 {[%clk 0:02:31]} 15. b4 {[%clk 0:02:55]}  Bd7 {[%clk 0:02:28]} 16. Be3 {[%clk 0:02:53]}  a5 {[%clk 0:02:27]} 17. Bd3 {[%clk 0:02:44]}  axb4 {[%clk 0:02:25]} 18. Rxa8 {[%clk 0:02:45]}  Rxa8 {[%clk 0:02:25]} 19. cxb4 {[%clk 0:02:46]}  Ra4 {[%clk 0:02:16]} 20. Rc1 {[%clk 0:02:45]}  Qb8 {[%clk 0:01:53]} 21. Qb2 {[%clk 0:02:44]}  Nd8 {[%clk 0:01:09]} 22. Nc3 {[%clk 0:02:44]}  Ra8 {[%clk 0:01:06]} 23. Qe2 {[%clk 0:02:45]}  Ng4 {[%clk 0:01:01]} 24. Bd2 {[%clk 0:02:43]}  Qb6 {[%clk 0:00:35]} 25. h3 {[%clk 0:02:39]}  Nf6 {[%clk 0:00:35]} 26. Be3 {[%clk 0:02:40]}  Qb8 {[%clk 0:00:35]} 27. Nd2 {[%clk 0:02:38]}  Ne8 {[%clk 0:00:27]} 28. Nxb5 {[%clk 0:02:38]}  Bxb5 {[%clk 0:00:24]} 29. Bxb5 {[%clk 0:02:39]}  Nc7 {[%clk 0:00:25]} 30. Bc6 {[%clk 0:02:39]}  Nxc6 {[%clk 0:00:24]} 31. dxc6 {[%clk 0:02:40]}  Qxb4 {[%clk 0:00:24]} 32. Rb1 {[%clk 0:02:40]}  Qc3 {[%clk 0:00:23]} 33. Qc4 {[%clk 0:02:39]}  Qa3 {[%clk 0:00:20]} 34. Rb7 {[%clk 0:02:37]}  Qa5 {[%clk 0:00:19]} 35. Bb6 {[%clk 0:02:36]}  Qa1+ {[%clk 0:00:19]} 36. Kh2 {[%clk 0:02:35]}  Ra4 {[%clk 0:00:16]} 37. Qd3 {[%clk 0:02:26]}  Ra3 {[%clk 0:00:16]} 38. Rb8+ {[%clk 0:02:24]}  Bf8 {[%clk 0:00:16]} 39. Rxf8+ {[%clk 0:02:23]}  Kxf8 {[%clk 0:00:15]} 40. Qxd6+ {[%clk 0:02:24]} 1-0


[Site "https://www.chess.com"]

[Event "Titled Tuesday Blitz April 19 Early 2022"]
[White "Aradhya, Garg"]
[Black "Xu, Yi"]
[WhiteFideId "25006746"]
[BlackFideId "8605564"]
[WhiteElo "2169"]
[BlackElo "2471"]
[Result "1-0"]
[Round "11"]
[TimeControl "180+1"]
[Date "2022.04.19"]
[WhiteClock "0:00:18"]
[BlackClock "0:00:04"]

1. d4 {[%clk 0:03:00]}  Nf6 {[%clk 0:02:59]} 2. Nf3 {[%clk 0:03:01]}  d5 {[%clk 0:02:59]} 3. c4 {[%clk 0:03:00]}  e6 {[%clk 0:03:00]} 4. Nc3 {[%clk 0:02:58]}  Bb4 {[%clk 0:03:00]} 5. Qa4+ {[%clk 0:02:57]}  Nc6 {[%clk 0:03:00]} 6. Bd2 {[%clk 0:02:57]}  O-O {[%clk 0:02:56]} 7. a3 {[%clk 0:02:56]}  Bxc3 {[%clk 0:02:56]} 8. Bxc3 {[%clk 0:02:57]}  Bd7 {[%clk 0:02:53]} 9. Qc2 {[%clk 0:02:56]}  dxc4 {[%clk 0:02:50]} 10. e4 {[%clk 0:02:08]}  b5 {[%clk 0:02:50]} 11. Rd1 {[%clk 0:02:08]}  a5 {[%clk 0:02:29]} 12. d5 {[%clk 0:02:07]}  exd5 {[%clk 0:02:20]} 13. exd5 {[%clk 0:02:08]}  Ne7 {[%clk 0:02:19]} 14. Bxf6 {[%clk 0:02:01]}  gxf6 {[%clk 0:02:17]} 15. Be2 {[%clk 0:02:01]}  Bf5 {[%clk 0:02:11]} 16. Qd2 {[%clk 0:02:00]}  Ng6 {[%clk 0:02:06]} 17. O-O {[%clk 0:01:58]}  Qd6 {[%clk 0:01:57]} 18. h4 {[%clk 0:01:26]}  Nf4 {[%clk 0:01:40]} 19. Rfe1 {[%clk 0:01:25]}  Nxe2+ {[%clk 0:01:35]} 20. Rxe2 {[%clk 0:01:05]}  Bd3 {[%clk 0:01:24]} 21. Re3 {[%clk 0:01:04]}  Qxd5 {[%clk 0:01:22]} 22. Ne1 {[%clk 0:01:04]}  Kh8 {[%clk 0:01:15]} 23. Qc3 {[%clk 0:00:57]}  Ra6 {[%clk 0:00:57]} 24. Nxd3 {[%clk 0:00:48]}  cxd3 {[%clk 0:00:57]} 25. Qxc7 {[%clk 0:00:32]}  d2 {[%clk 0:00:49]} 26. Qc3 {[%clk 0:00:30]}  Rg8 {[%clk 0:00:38]} 27. g3 {[%clk 0:00:29]}  Rd8 {[%clk 0:00:38]} 28. Re2 {[%clk 0:00:26]}  Rad6 {[%clk 0:00:33]} 29. Rexd2 {[%clk 0:00:25]}  Qxd2 {[%clk 0:00:28]} 30. Rxd2 {[%clk 0:00:25]}  Rxd2 {[%clk 0:00:28]} 31. Qxf6+ {[%clk 0:00:25]}  Kg8 {[%clk 0:00:29]} 32. Qg5+ {[%clk 0:00:25]}  Kh8 {[%clk 0:00:29]} 33. h5 {[%clk 0:00:20]}  R2d6 {[%clk 0:00:19]} 34. h6 {[%clk 0:00:18]}  Rd1+ {[%clk 0:00:04]} 35. Kg2 {[%clk 0:00:17]}  Rg8 {[%clk 0:00:04]} 36. Qf6+ {[%clk 0:00:17]}  Rg7 {[%clk 0:00:04]} 37. Qxg7# {[%clk 0:00:18]} 1-0


[Site "https://www.chess.com"]

[Event "Titled Tuesday Blitz April 19 Early 2022"]
[White "Baker, Chris W"]
[Black "Niyazgulova, Marina"]
[WhiteFideId "401676"]
[BlackFideId "24142573"]
[WhiteElo "2224"]
[BlackElo "2046"]
[Result "1/2-1/2"]
[Round "11"]
[TimeControl "180+1"]
[Date "2022.04.19"]
[WhiteClock "0:01:12"]
[BlackClock "0:00:17"]

1. c4 {[%clk 0:03:00]}  e5 {[%clk 0:02:59]} 2. Nc3 {[%clk 0:02:59]}  Nf6 {[%clk 0:02:57]} 3. Nf3 {[%clk 0:02:59]}  Nc6 {[%clk 0:02:56]} 4. g3 {[%clk 0:02:58]}  d5 {[%clk 0:02:56]} 5. cxd5 {[%clk 0:02:57]}  Nxd5 {[%clk 0:02:53]} 6. Bg2 {[%clk 0:02:57]}  Nb6 {[%clk 0:02:44]} 7. O-O {[%clk 0:02:55]}  Be7 {[%clk 0:02:43]} 8. d3 {[%clk 0:02:53]}  O-O {[%clk 0:02:41]} 9. Be3 {[%clk 0:02:52]}  Be6 {[%clk 0:02:41]} 10. a3 {[%clk 0:02:45]}  f6 {[%clk 0:02:37]} 11. b4 {[%clk 0:02:44]}  Nd5 {[%clk 0:02:34]} 12. Nxd5 {[%clk 0:02:43]}  Bxd5 {[%clk 0:02:34]} 13. Qc2 {[%clk 0:02:42]}  Rc8 {[%clk 0:02:24]} 14. Bc5 {[%clk 0:02:41]}  Re8 {[%clk 0:01:50]} 15. Rfc1 {[%clk 0:02:40]}  Bxc5 {[%clk 0:01:41]} 16. Qxc5 {[%clk 0:02:38]}  Nd4 {[%clk 0:01:10]} 17. Nxd4 {[%clk 0:02:33]}  Bxg2 {[%clk 0:01:09]} 18. Kxg2 {[%clk 0:02:33]}  exd4 {[%clk 0:01:09]} 19. Rc2 {[%clk 0:02:28]}  c6 {[%clk 0:01:03]} 20. Qxa7 {[%clk 0:02:25]}  Qd5+ {[%clk 0:01:00]} 21. f3 {[%clk 0:02:22]}  Rc7 {[%clk 0:00:47]} 22. Qc5 {[%clk 0:02:18]}  Qxc5 {[%clk 0:00:31]} 23. bxc5 {[%clk 0:02:17]}  Rce7 {[%clk 0:00:32]} 24. Kf2 {[%clk 0:02:16]}  Re5 {[%clk 0:00:32]} 25. Rb1 {[%clk 0:02:13]}  R8e7 {[%clk 0:00:28]} 26. Rb4 {[%clk 0:02:13]}  Rd5 {[%clk 0:00:28]} 27. Rcb2 {[%clk 0:02:08]}  Kf7 {[%clk 0:00:26]} 28. Rxb7 {[%clk 0:02:06]}  Rxc5 {[%clk 0:00:26]} 29. Rxe7+ {[%clk 0:02:02]}  Kxe7 {[%clk 0:00:26]} 30. Rb4 {[%clk 0:02:01]}  Ra5 {[%clk 0:00:22]} 31. Rxd4 {[%clk 0:02:00]}  Rxa3 {[%clk 0:00:22]} 32. Rb4 {[%clk 0:01:57]}  Ra7 {[%clk 0:00:21]} 33. Ke3 {[%clk 0:01:55]}  Kd6 {[%clk 0:00:21]} 34. Rb8 {[%clk 0:01:53]}  Re7+ {[%clk 0:00:19]} 35. Kd2 {[%clk 0:01:52]}  h6 {[%clk 0:00:19]} 36. Rd8+ {[%clk 0:01:50]}  Kc7 {[%clk 0:00:19]} 37. Rg8 {[%clk 0:01:48]}  c5 {[%clk 0:00:19]} 38. e4 {[%clk 0:01:47]}  Kc6 {[%clk 0:00:20]} 39. Kc3 {[%clk 0:01:46]}  Rd7 {[%clk 0:00:20]} 40. f4 {[%clk 0:01:43]}  Kb6 {[%clk 0:00:19]} 41. h4 {[%clk 0:01:41]}  Kc6 {[%clk 0:00:19]} 42. h5 {[%clk 0:01:40]}  Kb6 {[%clk 0:00:19]} 43. e5 {[%clk 0:01:39]}  fxe5 {[%clk 0:00:19]} 44. fxe5 {[%clk 0:01:39]}  Re7 {[%clk 0:00:19]} 45. Kc4 {[%clk 0:01:31]}  Rxe5 {[%clk 0:00:18]} 46. Rxg7 {[%clk 0:01:31]}  Rxh5 {[%clk 0:00:18]} 47. Rg6+ {[%clk 0:01:27]}  Kc7 {[%clk 0:00:18]} 48. g4 {[%clk 0:01:24]}  Rh4 {[%clk 0:00:16]} 49. Kd5 {[%clk 0:01:20]}  Rh3 {[%clk 0:00:16]} 50. Kxc5 {[%clk 0:01:18]}  Rxd3 {[%clk 0:00:16]} 51. Rxh6 {[%clk 0:01:18]}  Rg3 {[%clk 0:00:16]} 52. Rg6 {[%clk 0:01:16]}  Kd7 {[%clk 0:00:16]} 53. Kd5 {[%clk 0:01:16]}  Ke7 {[%clk 0:00:17]} 54. Ke5 {[%clk 0:01:16]}  Kf7 {[%clk 0:00:17]} 55. Rg5 {[%clk 0:01:16]}  Re3+ {[%clk 0:00:16]} 56. Kf4 {[%clk 0:01:16]}  Re1 {[%clk 0:00:17]} 57. Ra5 {[%clk 0:01:16]}  Kg6 {[%clk 0:00:16]} 58. Ra6+ {[%clk 0:01:15]}  Kg7 {[%clk 0:00:17]} 59. Kg5 {[%clk 0:01:14]}  Re5+ {[%clk 0:00:17]} 60. Kf4 {[%clk 0:01:13]}  Rb5 {[%clk 0:00:17]} 61. Ra7+ {[%clk 0:01:12]}  Kg6 {[%clk 0:00:16]} 62. Ra6+ {[%clk 0:01:12]}  Kg7 {[%clk 0:00:17]} 63. Ra7+ {[%clk 0:01:12]}  Kg6 {[%clk 0:00:17]} 64. Ra6+ {[%clk 0:01:12]}  Kg7 {[%clk 0:00:17]} 1/2-1/2


[Site "https://www.chess.com"]

[Event "Titled Tuesday Blitz April 19 Early 2022"]
[White "Barbashin, Igor"]
[Black "Agasarov, Benik"]
[WhiteFideId "4155718"]
[BlackFideId "13314823"]
[WhiteElo "2138"]
[BlackElo "2498"]
[Result "0-1"]
[Round "11"]
[TimeControl "180+1"]
[Date "2022.04.19"]
[WhiteClock "0:00:29"]
[BlackClock "0:01:32"]

1. d4 {[%clk 0:01:23]}  Nf6 {[%clk 0:02:58]} 2. c4 {[%clk 0:01:23]}  e6 {[%clk 0:02:56]} 3. Nc3 {[%clk 0:01:24]}  Bb4 {[%clk 0:02:56]} 4. Nf3 {[%clk 0:01:24]}  d5 {[%clk 0:02:55]} 5. e3 {[%clk 0:01:24]}  O-O {[%clk 0:02:55]} 6. Bd3 {[%clk 0:01:24]}  c5 {[%clk 0:02:55]} 7. O-O {[%clk 0:01:23]}  Nc6 {[%clk 0:02:53]} 8. cxd5 {[%clk 0:01:22]}  exd5 {[%clk 0:02:52]} 9. dxc5 {[%clk 0:01:20]}  Bxc5 {[%clk 0:02:52]} 10. b3 {[%clk 0:01:19]}  Bg4 {[%clk 0:02:51]} 11. Bb2 {[%clk 0:01:16]}  Re8 {[%clk 0:02:44]} 12. Be2 {[%clk 0:01:13]}  a6 {[%clk 0:02:39]} 13. Rc1 {[%clk 0:01:12]}  Ba7 {[%clk 0:02:38]} 14. h3 {[%clk 0:01:12]}  Bh5 {[%clk 0:02:37]} 15. Nb1 {[%clk 0:01:09]}  Ne4 {[%clk 0:02:35]} 16. Nbd2 {[%clk 0:01:08]}  Qe7 {[%clk 0:02:14]} 17. Nd4 {[%clk 0:01:06]}  Bxd4 {[%clk 0:02:11]} 18. Bxd4 {[%clk 0:01:01]}  Nxd4 {[%clk 0:02:10]} 19. Bxh5 {[%clk 0:00:58]}  Nf5 {[%clk 0:02:06]} 20. Nxe4 {[%clk 0:00:56]}  dxe4 {[%clk 0:02:05]} 21. Bg4 {[%clk 0:00:53]}  Nh4 {[%clk 0:02:02]} 22. Qe2 {[%clk 0:00:49]}  f5 {[%clk 0:02:02]} 23. g3 {[%clk 0:00:45]}  fxg4 {[%clk 0:01:57]} 24. gxh4 {[%clk 0:00:45]}  gxh3 {[%clk 0:01:57]} 25. Qg4 {[%clk 0:00:45]}  Rf8 {[%clk 0:01:55]} 26. Rc4 {[%clk 0:00:42]}  Rae8 {[%clk 0:01:53]} 27. Qxh3 {[%clk 0:00:42]}  Rf6 {[%clk 0:01:50]} 28. Kh2 {[%clk 0:00:39]}  Ref8 {[%clk 0:01:50]} 29. Qg3 {[%clk 0:00:39]}  Rf3 {[%clk 0:01:50]} 30. Qg4 {[%clk 0:00:36]}  Qe5+ {[%clk 0:01:45]} 31. Kg2 {[%clk 0:00:35]}  Qf6 {[%clk 0:01:33]} 32. Rxe4 {[%clk 0:00:33]}  Rxf2+ {[%clk 0:01:32]} 33. Rxf2 {[%clk 0:00:33]}  Qxf2+ {[%clk 0:01:33]} 34. Kh1 {[%clk 0:00:30]}  Qf1+ {[%clk 0:01:32]} 35. Kh2 {[%clk 0:00:29]}  Rf2+ {[%clk 0:01:32]} 36. Kg3 {[%clk 0:00:29]}  Qg2# {[%clk 0:01:32]} 0-1


[Site "https://www.chess.com"]